Cogmind - Beta 15 @@@ ROGUE MODE // 2025.05.19 @ 21:18:50 Player: ochotona_princeps Result: Destroyed by G-34 Mercenary with Small Laser Performance ------------- Evolutions (1) 500 Regions Visited (3) 600 Robots Destroyed (55) 275 Value Destroyed (1412) 1412 Prototype IDs (3) 60 Alien Tech Used (0) 0 Bonus (-1) -1 TOTAL SCORE: 2846 Bonus ------- Follower Combat Kills 60 Friendly Fire -61 Cogmind --------- Core Integrity 0/400 Matter 246/300 Energy 250/280 System Corruption 1% Temperature Cool (30) Movement Treading (170) Location -9/Materials Parts ------- > --- POWER (1) -------- Heavy Ion Engine > --- PROPULSION (3) --- Armored Treads Armored Treads Armored Treads > --- UTILITY (3) ------ Improved Heat Sink Small Storage Unit > --- WEAPON (2) ------- Field Laser Field Laser > --- INVENTORY (8) ---- Armored Treads Signal Interpreter Hacking Suite Hacking Suite Field Laser Field Laser Grenade Launcher Peak State ------------ > --- POWER ------------ Heavy Ion Engine > --- PROPULSION ------- Armored Treads Armored Treads Armored Treads > --- UTILITY ---------- Improved Heat Sink Small Storage Unit > --- WEAPON ----------- Field Laser Field Laser > --- INVENTORY -------- Heavy Ion Engine Armored Treads Signal Interpreter Hacking Suite Hacking Suite Grenade Launcher [Rating: 23] Favorites ----------- Power Light Ion Engine Engine Light Ion Engine Propulsion Improved Treads Treads Improved Treads Leg Aluminum Leg Utility Small Storage Unit Device Improved Heat Sink Storage Small Storage Unit Protection Medium Armor Plating Weapon Medium Laser Energy Gun Medium Laser Energy Cannon Beam Cannon Ballistic Gun Light Assault Rifle Ballistic Cannon Light Cannon Launcher Grenade Launcher Impact Weapon Hammer Build | -11 -10 -10 -9 ------- Run | Yrd Mat Min Mat Slots Evolved 2 | . . . 2 Power . | . . . . Propulsion 1 | . . . 1 Utility 1 | . . . 1 Weapon . | . . . . Parts Attached 40 | 6 6 8 20 Power 6 | 1 1 1 3 Engine 6 | 1 1 1 3 Core . | . . . . Reactor . | . . . . Propulsion 12 | 2 . 3 7 Treads 7 | . . . 7 Leg 5 | 2 . 3 . Wheel . | . . . . Hover . | . . . . Flight . | . . . . Utility 7 | 1 2 1 3 Device 4 | . 2 1 1 Storage 1 | 1 . . . Processor . | . . . . Hackware . | . . . . Protection 2 | . . . 2 Artifact . | . . . . Weapon 15 | 2 3 3 7 Energy Gun 8 | 2 . 2 4 Energy Cannon 1 | . . . 1 Ballistic Gun 2 | . 1 . 1 Ballistic Cannon 1 | . 1 . . Launcher 2 | . 1 . 1 Special Weapon . | . . . . Impact Weapon 1 | . . 1 . Slashing Weapon . | . . . . Piercing Weapon . | . . . . Special Melee Weapon . | . . . . Unidentified Prototypes 2 | . . . 2 Parts Lost 10 | . . 2 8 Power 1 | . . 1 . Propulsion 4 | . . 1 3 Utility 2 | . . . 2 Weapon 3 | . . . 3 Highest Loss Streak 6 | . . 2 6 To Critical Strikes . | . . . . Average Backups 7 | 1 6 8 7 Power . | . . . . Propulsion 1 | . 2 2 1 Utility 2 | . . 3 3 Weapon 2 | . 3 3 2 Tool/Special . | . . . . Unused Backups 10 | . . 2 8 Power . | . . . . Propulsion 4 | . . 2 2 Utility 3 | . . . 3 Weapon 3 | . . . 3 Tool/Special . | . . . . Average Slot Usage (%) 94 | . 95 97 93 Engine 11 | . 14 11 11 Treads 14 | . . . 28 Leg 14 | . 28 27 2 Device 10 | . 9 14 9 Storage 12 | . 14 14 11 Protection 4 | . . . 8 Energy Gun 18 | . 19 27 15 Ballistic Cannon 1 | . 2 . . Launcher 2 | . 5 . 2 Peak Build Rating 23 | 6 8 19 23 Average Rating 13 | 4 6 14 16 On Entrance 8 | . 6 8 19 Naked Turns . | . . . . Heaviest Build 28 | 12 15 17 28 Greatest Support 66 | 20 20 30 66 Greatest Overweight (x) 1 | . . 1 1 Average Overweight (x) . | . . . . Largest Inventory Capacity 8 | 8 8 8 8 Average Capacity 7 | 6 8 8 8 Most Carried 8 | 4 8 8 8 Average Carried 7 | 1 6 7 7 Final Capacity 8 | 8 8 8 8 Final Carried 8 | 4 8 8 7 Class Distribution -------------------- 71% | Mutant 28% | Scavenger-Mutant Dominant Class ---------------- Mutant | -10/Materials Scavenger-Mutant | -10/Mines Mutant | -9/Materials Resources | -11 -10 -10 -9 ----------- Run | Yrd Mat Min Mat Matter Collected 975 | . 308 308 359 Remotely . | . . . . Salvage Created 1549 | . 372 231 946 Parts 90 | . 20 9 61 Haulers Intercepted 1 | . . . 1 Recyclers Shooed 5 | . 1 3 1 Parts Field Recycled . | . . . . Retrieved Matter . | . . . . Parts Self-Destructed . | . . . . Prevented . | . . . . Kills | -11 -10 -10 -9 ------- Run | Yrd Mat Min Mat Combat Hostiles Destroyed 40 | . 14 4 22 Melee 2 | . . 1 1 Guns 14 | . 3 2 9 Cannons 7 | . 5 . 2 AOE 12 | . 5 . 7 Classes Destroyed 11 | . 4 3 4 Worker 2 | . . 1 1 Builder 2 | . . . 2 Tunneler 2 | . . 1 1 Hauler 1 | . . . 1 Operator 2 | . 1 . 1 Watcher 5 | . 1 . 4 Swarmer 10 | . 6 . 4 Grunt 21 | . 8 4 9 Duelist 2 | . . . 2 Sentry 7 | . . . 7 Zionite 1 | . . 1 . Best Kill Streak 5 | . 3 2 5 Combat Bots Only 4 | . 3 2 4 Max Kills in Single Turn 4 | . 2 2 4 Gunslinging 1 | . . 1 . Exploded 4 | . 2 . 4 Melee 1 | . . 1 1 Uniques/NPCs Destroyed . | . . . . Combat | -11 -10 -10 -9 -------- Run | Yrd Mat Min Mat Hostile Shots Fired 244 | . 54 18 172 Missed 71 | . 16 5 50 Hits 173 | . 38 13 122 Melee 16 | . . . 16 Projectile 157 | . 38 13 106 Critical Strikes 1 | . . . 1 Damage Taken 2345 | . 405 181 1759 Core 574 | . 113 56 405 Absorbed by Shields 125 | . . . 125 Regen/Repaired (Parts) 56 | . . . 56 Core Remaining (%) 66 | 100 . 32 . Volleys Fired 160 | . 50 14 96 Largest 2 | . 2 2 2 Hottest 140 | . 100 115 140 Shots Fired 243 | . 81 25 137 Gun 191 | . 56 25 110 Cannon 41 | . 20 . 21 Launcher 11 | . 5 . 6 Special . | . . . . Kinetic 34 | . 26 . 8 Thermal 167 | . 50 25 92 Explosive 11 | . 5 . 6 Electromagnetic 31 | . . . 31 Robot Hit Streak 10 | . 8 5 10 Robot Miss Streak 4 | . 3 2 4 Penetration Max . | . . . . Secondary Targets 1 | . . 1 . Max Gunslinging Chain 1 | . . 1 . Shots Hit Robots 166 | . 47 21 98 Core Hits 74 | . 23 8 43 Critical Kills 1 | . . . 1 Critical Parts Destroyed 4 | . . 1 3 Critical Strikes 16 | . 5 1 10 Burn 9 | . 4 . 5 Blast 1 | . 1 . . Corrupt 1 | . . . 1 Smash 5 | . . 1 4 Melee Attacks 32 | . . 7 25 Impact 32 | . . 7 25 Slashing . | . . . . Piercing . | . . . . Sneak Attacks 2 | . . 1 1 Combat Hostiles . | . . . . Follow-up Attacks . | . . . . Damage Inflicted 3410 | . 892 390 2128 Guns 1791 | . 448 233 1110 Cannons 328 | . 144 . 184 Explosions 702 | . 300 . 402 Melee 589 | . . 157 432 Ramming . | . . . . Kinetic 293 | . 181 . 112 Thermal 1581 | . 411 233 937 Explosive 655 | . 300 . 355 Electromagnetic 292 | . . . 292 Impact 589 | . . 157 432 Slashing . | . . . . Piercing . | . . . . Highest Corruption 1 | . . . 1 Average Corruption 1 | . . . 1 Corruption Purged . | . . . . Corruption Blocked . | . . . . Effects 10 | . . . 10 Message Errors 2 | . . . 2 Matter Fused 1 | . . . 1 Heat Flow Errors 1 | . . . 1 Energy Discharges 1 | . . . 1 Data Loss (minor) 1 | . . . 1 Data Loss (major) 2 | . . . 2 Misfires 1 | . . . 1 Alerts 1 | . . . 1 Overload Shots . | . . . . Overflow Damage 129 | . 19 46 64 Projectiles . | . . . . Explosions 22 | . 19 . 3 Melee 107 | . . 46 61 Knockbacks . | . . . . Impact . | . . . . Kinetic . | . . . . Secondary . | . . . . Self-Inflicted Damage . | . . . . Shots . | . . . . Rammed . | . . . . Targets Rammed . | . . . . Kicked . | . . . . Crushed . | . . . . Highest Temperature 341 | . 288 51 341 Average Temperature 107 | . 96 15 129 Received Heat Transfer 771 | . 159 105 507 Effects 3 | . . . 3 Energy Bleed 3 | . . . 3 Siege Activations . | . . . . Martial Activations . | . . . . Shielding Activations . | . . . . Robots Disrupted . | . . . . Combat Hostiles . | . . . . Robots Corrupted 5 | . . 2 3 Combat Hostiles 4 | . . 1 3 Parts Fried 6 | . . 2 4 Impact Corruptions 8 | . . 3 5 Robots Melted 1 | . 1 . . Combat Hostiles 1 | . 1 . . Parts Melted 12 | . 5 1 6 Heat Transferred 4564 | . 1517 592 2455 Parts Sabotaged . | . . . . Parts Stolen . | . . . . Parts Stripped . | . . . . Power Chain Reactions 1 | . . . 1 Alert | -11 -10 -10 -9 ------- Run | Yrd Mat Min Mat Maximum Alert Level . | . . . . Low Security (%) 100 | 100 100 100 100 Level 1 . | . . . . Level 2 . | . . . . Level 3 . | . . . . Level 4 . | . . . . Level 5 . | . . . . High Security . | . . . . Max Security . | . . . . Peak Influence 193 | . 193 77 170 Initial 47 | . . 47 . Average 64 | . 109 15 64 Influence Increases 1405 | . 500 168 737 Destroy 0b10 Robot/C 840 | . 280 120 440 Destroy 0b10 Robot/NC 70 | . 10 10 50 Destroy Leader 222 | . 62 30 130 Allied During Kill 8 | . . 8 . Successful Hack 89 | . 42 . 47 Disable Machine 15 | . 15 . . Destroy Structure 71 | . 31 . 40 Partial Spotted 15 | . 15 . . Lose Combat Pursuer 75 | . 45 . 30 Influence Decreases 1316 | . 378 290 648 Entered New Map 75 | . . 75 . Time Decay 1102 | . 378 195 529 Lost Part 57 | . . 20 37 Purge Threat 82 | . . . 82 Squads Dispatched 7 | . 4 . 3 Investigation 5 | . 3 . 2 Extermination . | . . . . Reinforcement 2 | . 1 . 1 Assault . | . . . . Garrison . | . . . . Intercept . | . . . . Searches Triggered . | . . . . Construction Impeded . | . . . . Haulers Reinforced . | . . . . Active Scanning Responses . | . . . . Cargo Convoy Interrupts . | . . . . Stealth | -11 -10 -10 -9 --------- Run | Yrd Mat Min Mat Distress Signals 3 | . 2 . 1 Communications Jammed . | . . . . Distress Signals . | . . . . Times Spotted 60 | . 19 6 35 Peak Tracking Total 5 | . 5 2 4 Tactical Retreats 4 | . 2 . 2 Traps | -11 -10 -10 -9 ------- Run | Yrd Mat Min Mat Traps Triggered 2 | . 1 . 1 Indirectly . | . . . . Trap Hack Attempts . | . . . . Triggered . | . . . . Disarmed . | . . . . Reprogrammed . | . . . . Reused . | . . . . Traps Extracted . | . . . . Installed . | . . . . Triggered . | . . . . Machines | -11 -10 -10 -9 ---------- Run | Yrd Mat Min Mat Machines Disabled 1 | . 1 . . Max in Single Turn 1 | . 1 . . Machines Repaired . | . . . . Machines Dismantled . | . . . . Machines Sabotaged . | . . . . Overloaded Fab Kills . | . . . . Hacking | -11 -10 -10 -9 --------- Run | Yrd Mat Min Mat Machines Accessed 18 | . 7 . 11 Terminals 16 | . 7 . 9 Fabricators . | . . . . Repair Stations 1 | . . . 1 Recycling Units . | . . . . Scanalyzers 1 | . . . 1 Garrison Access . | . . . . Total Hacks 56 | . 21 . 35 Successful 33 | . 13 . 20 Failed 23 | . 8 . 15 Catastrophic 6 | . 3 . 3 Database Lockouts . | . . . . Manual 39 | . 20 . 19 Terminals 52 | . 21 . 31 Fabricators . | . . . . Repair Stations 2 | . . . 2 Recycling Units . | . . . . Scanalyzers 2 | . . . 2 Garrison Access . | . . . . Terminal Hacks 10 | . 4 . 6 Robot Analysis 4 | . 3 . 1 Prototype ID Bank 1 | . . . 1 Terminal Index 2 | . 1 . 1 Unreport Threat 1 | . . . 1 Security Status 1 | . . . 1 Hauler Manifests 1 | . . . 1 Fabricator Hacks . | . . . . Repair Station Hacks 2 | . . . 2 Scan Component 1 | . . . 1 Repair 1 | . . . 1 Recycling Unit Hacks . | . . . . Scanalyzer 2 | . . . 2 Insert Component 1 | . . . 1 Analyze 1 | . . . 1 Garrison Access Hacks . | . . . . Unauthorized Hacks 19 | . 9 . 10 Terminals 19 | . 9 . 10 Botnet 5 | . 2 . 3 Operators 2 | . 1 . 1 Skim 12 | . 6 . 6 Fabricators . | . . . . Repair Stations . | . . . . Recycling Units . | . . . . Scanalyzers . | . . . . Garrison Access . | . . . . Data Cores Recovered . | . . . . Used . | . . . . Hacking Detections 17 | . 6 . 11 Full Trace Events 4 | . 2 . 2 Feedback Events 1 | . . . 1 Corruption 1 | . . . 1 Feedback Blocked . | . . . . Robot Schematics Acquired . | . . . . Robots Built . | . . . . Authchips . | . . . . Time . | . . . . Total Robot Build Rating . | . . . . Part Schematics Acquired 1 | . . . 1 Parts Built . | . . . . Authchips . | . . . . Time . | . . . . Total Part Build Rating . | . . . . Parts Repaired 1 | . . . 1 Time 26 | . . . 26 Parts Recycled . | . . . . Recycled Matter . | . . . . Retrieved Matter . | . . . . Retrieved Components . | . . . . Parts Scanalyzed 1 | . . . 1 Part Schematics Acquired 1 | . . . 1 Parts Damaged . | . . . . Bothacking | -11 -10 -10 -9 ------------ Run | Yrd Mat Min Mat Used RIF Installer . | . . . . Robots Hacked . | . . . . Non-combat . | . . . . Combat . | . . . . Robot Hacks Applied . | . . . . Relay Couplers Released . | . . . . Fabnet Peak Effective % . | . . . . Robots Rewired . | . . . . Allies Hacked . | . . . . Hacks Repelled . | . . . . Allies | -11 -10 -10 -9 -------- Run | Yrd Mat Min Mat Total Allies 2 | . . 2 . Largest Group 2 | . . 2 . Highest-Rated Group 52 | . . 52 . Highest-Rated Ally 31 | . . 31 . Total Orders . | . . . . Ally Attacks 12 | . . 12 . Total Damage 227 | . . 227 . Kills 2 | . . 2 . Allies Corrupted 1 | . . 1 . Allies Melted . | . . . . Intel | -11 -10 -10 -9 ------- Run | Yrd Mat Min Mat Active Infowar (turns) 164 | . 164 . . Sensors 164 | . 164 . . Robot Analysis Total 4 | . 3 . 1 Derelict Logs Recovered 2 | . . 2 . Drone Launches . | . . . . Drone Recoveries . | . . . . Exploration | -11 -10 -10 -9 ------------- Run | Yrd Mat Min Mat Turns Passed 4066 | 80 1046 878 2062 Spaces Moved 2510 | 61 741 661 1047 Core 9 | 9 . . . Treads 1003 | . . . 1003 Legs 1498 | 52 741 661 44 Wheels . | . . . . Hover . | . . . . Flight . | . . . . Fastest Speed 50 | 50 120 120 120 Average Speed 136 | 109 120 120 159 Slowest Speed 240 | 120 120 190 240 Overloaded Moves . | . . . . Propulsion Burnouts . | . . . . Robots Hopped . | . . . . Potential Cave-ins . | . . . . Cave-ins Triggered . | . . . . Exploration Rate (%) 64 | 5 90 96 65 Regions Visited 3 Branch Regions 1 Pre-discovered Areas 7 | . 2 3 2 Known Exits Taken . | . . . . Unknown Exits Taken 3 | 1 1 1 . Scrap Searched 3 | . . 3 . Spaces Dug 1 | . . . 1 Terrain Destroyed 75 | . 32 . 43 Melee 1 | . . . 1 Projectile . | . . . . AOE 74 | . 32 . 42 Terrain Rammed . | . . . . Walls Destroyed . | . . . . Machines Disabled . | . . . . Actions | -11 -10 -10 -9 --------- Run | Yrd Mat Min Mat Total 2847 | 71 812 707 1257 Wait 31 | . 1 4 26 Move 2507 | 60 740 660 1047 Hop . | . . . . Pick Up 25 | 5 6 3 11 Fast Attach 29 | 5 1 4 19 Attach 6 | 1 . . 5 Detach . | . . . . Swap 27 | . 12 7 8 Drop 30 | . 2 8 20 Fire 160 | . 50 14 96 Melee 32 | . . 7 25 Ram . | . . . . Kick . | . . . . Crush . | . . . . Escape Stasis . | . . . . Rewire . | . . . . Trap . | . . . . Miscellaneous . | . . . . Route ------- -11/Scrapyard -10/Materials (discovered 6 exits: *Mat x3 / [*Min x2] / Sub) -10/Mines (discovered 2 exits: *Mat x2) -9/Materials (discovered 5 exits: *Mat x3 / Min / Sto) History --------- Turn | Location | Event 5 | -11/Scrapyard | Discovered new exit (range 15) 81 | -11/Scrapyard | Entered Materials 310 | -10/Materials | Build established: Mutant 328 | -10/Materials | Discovered new exit (range 15) 328 | -10/Materials | Discovered new exit (range 11) 477 | -10/Materials | Discovered new exit (range 16) 516 | -10/Materials | Discovered new exit (range 16) 668 | -10/Materials | Discovered new exit (range 4) 982 | -10/Materials | Learned Storage trap positions 1054 | -10/Materials | Learned 2 Mines zone layouts 1084 | -10/Materials | Identified exit to Subcaves 1084 | -10/Materials | Learned location of 1 exit from Materials 1121 | -10/Materials | Learned location of Subcaves (-10) 1127 | -10/Materials | Entered Mines 1130 | -10/Mines | Core integrity fell below 50% 1180 | -10/Mines | Found a hidden stash of uninstalled traps 1235 | -10/Mines | Learned location of Storage (-9) 1350 | -10/Mines | Discovered new exit (range 11) 1429 | -10/Mines | Found DCF Scrap (14 items) 1473 | -10/Mines | Discovered new exit (range 9) 1576 | -10/Mines | Build established: Scavenger-Mutant 2005 | -10/Mines | Entered Materials 2005 | -9/Materials | Evolved 2 slots: Propulsion x1, Utility x1 2006 | -9/Materials | Identified exit to Mines 2006 | -9/Materials | Identified exit to Storage 2007 | -9/Materials | Identified exit to Materials 2635 | -9/Materials | Discovered exit to Materials (range 3) 2728 | -9/Materials | Build established: Mutant 3194 | -9/Materials | Repaired Grenade Launcher 3265 | -9/Materials | Learned location of 1 exit from Storage 3333 | -9/Materials | Learned Storage emergency access door positions 3390 | -9/Materials | Learned location of Zion (-6) 3661 | -9/Materials | Learned Storage stockpile data 3777 | -9/Materials | Core integrity fell below 50% 3803 | -9/Materials | Lost 6 parts (3n1u2w) 3830 | -9/Materials | Core integrity fell below 20% 4067 | -9/Materials | Destroyed by G-34 Mercenary with Small Laser Last Messages --------------- corrupted. 03841_ Imp. Ion Engine melted. 03871_ :WUBZCU79#1MIALFIBJI/F5Z3RA=IU/B 03914_ K-01 Serf collects debris. 03918_ G-34 Mercenary destroyed. 03920_ K-01 Serf collects debris. 03950_ Acquired Arm. Treads. 03956_ Dropped Lgt. Treads. 03956_ Acquired Arm. Treads. 03967_ Acquired Field Laser. 03971_ Dropped Hammer. 03971_ Acquired Field Laser. 03975_ Dropped Hvy. Ion Engine. 03977_ Acquired Field Laser. 03984_ U-05 Engineer suffers critical hit (Burn). 03984_ Wheel melted. 03984_ U-05 Engineer destroyed. 03987_ Acquired 16 matter. 04022_ System corrupted: Heat flow error (+228). Map ----- +----------------------------------------------------+ | ?????????????????????????????????????????????????? | | ?????????????????????????????????????????????????? | | ??????????????????????????????????????###########? | | ??????????????????????????????????????# """"""" #? | | ??????????????????????????????????????# """"""" ## | | ??????????????????????????????????????# """"""" # | | ??????????????????????????????????????# """"""" + | | ??????????????????????????????????????# """"""" # | | ??????????????????????????????????????# # | | ??????????????????????????????????????# # | | ???# #???############ ?????????????#! # | | ???## ###### ?????????????########### | | ????# # # < ???????????????????????# | | ????# + # ???????????????????????# | | ????# # ##############?????????????########### | | ????# # #???????# """?????????????# + | | ????# # #???????# """?????????????# # | | ????# # #???????# """?????????????# # | | ????# # #???????# ?????????????# # | | ????# ######???????# ?????????????# # | | ?####+############## ?????????????# + | | ?# # ## ??????#??????# ] # | | ?# "" # """ """ ## ????? #??????# ## | | ?# ""S # """ """ #######+### ##################? | | ?# "" # """ """ + g a ?????##?? | | ?# # # @ g ?????+ ? | | ?# # ## ### ########????????????# ? | | ?######## ## #?# #?????????###???????# ? | | ????????# ## #?# #??????#### ###?????# ? | | ????????############ #?# #??????# #?###?# " | | ?????????????#######+### #??????# +? ?+ " | | ?????????????# # k#??????# #?# #?# | | ?????????????# ! # #??????# #?# #?# " | | ?????????????# """ # #??????# #?# #?# " | | ?????????????# """ + #??????# #?# #?# " | | ?????????????? """ = # #??????# ### ### | | ???????????????""" ??# +??????# # ###+ | | ???????????????""" ????# #??????#[]] # | | ?????????????? ??????# #??????#[]] + " | | ?????????????##????????# #??????#]]] # | | ???????????????????????# #??????# # % #### | | ???????????????????????# #??????# ## ##??? | | ???????????????????????# ############/### %#???? | | ??????????############## ## ## # #???? | | ??????????# # /## # #???? | | ??????????# # ## # #???? | | ??????????# # ## # #???? | | ??????????+ ##### # ####+### ##### | | ?????????????????#"" *% ## """ # % | | ?????????????????#"T ! ##= """ + % | +----------------------------------------------------+ Best States ------------- Heat Dissipation 42 Energy Generation 14 Energy Capacity 280 Matter Stores 300 Matter Capacity 300 Sight Range 16 Robot Scan Range 14 Terrain Scan Density 10 Armor Coverage 225 Evasion (%) 55 Recoil Reduction 3 Item Schematics ----------------- Hacking Suite | -9/Materials | Scanalyzed Robot Schematics ------------------ None Fabricated ------------ Nothing Repaired ---------- Grenade Launcher | 6% | -9/Materials Alien Tech Used ----------------- None Achievements -------------- None Challenges ------------ None Game ------ Seed HardenedHeatFlamer Manual? 0 Play Time 00:30:30 Cumulative 235.0 hours Start 2025.05.19 @ 20:51:10 End 2025.05.19 @ 21:18:50 Sessions 1 Manual Loads 0 Difficulty Rogue Special Mode None Game No. 233 Rogue 172 Adventurer 61 Explorer 0 Win Type - Total 10 Types 8/0/2/0/0/0/0/0/0/0 Lore% 51 Gallery% 62 Achievement% 61 Wizard Run 0 Options --------- Layout 1 ASCII 0 Keyboard 0 Movement Mouse Keybinds 0 Fullscreen 2 Font 32/SmallcapsGlow Map View 50x35 Zoom Use 0% Tactical HUD 1 Map Filters NONE Filters NONE Steam 1 RUN: 9d46dc28-4aab-4d36-8d0d-bcd5a1ba963b